bitfinex/quotes_ETHUSD_20250123
["timestamp","ask_amount","ask_price","bid_price","bid_amount"]
[1737671933030,0.03017,3314.2,3313.9,3.01758]
[1737671933218,0.03017,3314.2,3314.0,3.01745]
[1737671934039,0.03017,3314.2,3313.9,3.01758]
[1737671934754,0.03017,3314.2,3313.7,3.0]
[1737671934959,0.03017,3314.2,3313.6,3.7918]
[1737671934960,3.01741,3314.1,3313.6,3.7918]
[1737671935137,3.01741,3314.1,3313.6,3.0]
[1737671935646,3.01751,3314.0,3313.6,3.0]
[1737671935831,3.01741,3314.1,3312.8,3.01854]
[1737671935832,0.03017,3314.2,3313.1,0.374]
[1737671936030,3.01801,3313.5,3312.9,0.8284]
[1737671936239,3.01825,3313.2,3312.5,1.1978]
[1737671936550,3.01836,3313.1,3312.5,4.21659]
[1737671936857,3.01807,3313.4,3312.5,1.1978]
[1737671937146,3.01815,3313.3,3312.7,3.01865]
[1737671937337,3.01815,3313.3,3312.7,3.0]
[1737671937648,3.01815,3313.3,3312.6,38.01877]
[1737671938144,3.01807,3313.4,3312.7,3.0]
[1737671938315,3.01807,3313.4,3312.9,3.0]
[1737671938510,0.8187,3313.8,3312.9,6.01842]
[1737671938511,3.01788,3313.6,3312.9,6.01842]
[1737671938713,3.0178,3313.7,3313.1,3.01825]
[1737671939272,3.01787,3313.6,3312.9,6.01842]
[1737671939457,3.01787,3313.6,3313.0,3.0184]
[1737671939759,0.805,3313.3,3312.8,0.26984008]
[1737671939914,3.0185,3312.9,3312.8,0.26984008]
[1737671940537,0.59743472,3313.2,3312.0,3.01932]
[1737671940742,3.0185,3312.9,3312.2,3.01907]
[1737671941053,3.0185,3312.9,3312.3,6.01903]
[1737671941256,3.0185,3312.9,3312.3,6.52169894]
[1737671941658,3.0185,3312.9,3312.3,6.72552949]
[1737671941952,3.0185,3312.9,3312.3,6.22286055]
[1737671942354,0.8297,3312.7,3312.3,0.20383055]
[1737671942543,3.84845,3312.7,3312.3,0.20383055]
[1737671942941,3.84845,3312.7,3312.1,3.0]
[1737671943146,3.84845,3312.7,3311.8,38.01947]
[1737671943346,3.0185,3312.9,3312.2,0.8003]
[1737671943664,3.0186,3312.8,3312.2,0.8003]
[1737671944665,3.0186,3312.8,3312.1,3.01922]
[1737671945160,3.01869,3312.7,3312.1,3.01922]
[1737671946963,1.42411677,3313.3,3312.0,3.0]
[1737671947167,0.8297,3313.3,3312.7,3.0]
[1737671947464,0.8297,3313.3,3312.7,6.0186]
[1737671947667,0.8297,3313.3,3312.9,3.0]
[1737671947823,0.8297,3313.3,3312.4,3.01889]
[1737671948160,3.01847,3313.0,3312.4,3.0]
[1737671948363,3.01851,3312.9,3312.4,3.0]
[1737671948562,3.01832,3313.1,3312.4,6.39572]
[1737671948750,3.01798,3313.5,3312.6,3.01876]
[1737671949057,0.7678,3313.4,3312.6,3.01876]
[1737671949260,3.01822,3313.3,3312.6,3.01876]
[1737671949462,3.01822,3313.3,3312.6,3.660208]
[1737671949640,0.7678,3313.4,3312.7,3.01861]
[1737671949826,3.01816,3313.3,3312.6,0.641448]
[1737671950028,3.01796,3313.5,3312.8,3.01859]
[1737671950225,0.7678,3313.7,3312.7,0.8076]
[1737671950438,3.78111,3314.1,3312.9,3.0]
[1737671950653,3.78111,3314.1,3313.3,3.01808]
[1737671950848,3.78111,3314.1,3313.4,3.018]
[1737671951140,0.03017,3314.2,3313.9,3.0]
[1737671951347,0.03017,3314.2,3313.9,6.01758]
[1737671951553,0.03017,3314.2,3314.1,3.01741]
[1737671951950,0.03017,3314.2,3314.1,6.920909]
[1737671953239,0.03017,3314.2,3314.1,7.750109]
[1737671954339,0.03017,3314.2,3314.1,42.750109]
[1737671955090,0.03017,3314.2,3314.1,4.732699]
[1737671955256,0.03017,3314.2,3314.1,6.84661]
[1737671957740,0.005,3314.8,3314.7,3.01686]
[1737671958081,0.005,3314.8,3314.7,6.01686]
[1737671960548,0.005,3314.8,3314.7,6.77756]
[1737671960751,0.005,3314.8,3314.7,7.757013]
[1737671962160,0.005,3314.8,3314.7,6.77756]
[1737671966098,0.005,3314.8,3314.7,3.7607]
[1737671966731,0.005,3314.8,3314.7,3.0]
[1737671967232,3.02177,3314.8,3314.7,3.0]
[1737671968019,3.02177,3314.8,3314.0,3.01747]
[1737671968020,3.01688,3314.7,3314.0,3.01747]
[1737671968328,3.0175,3314.0,3313.4,0.7805]
[1737671968896,3.8385,3313.8,3313.1,3.01832]
[1737671969097,3.01793,3313.6,3313.0,0.3]
[1737671969366,3.01803,3313.5,3313.0,0.3]
[1737671969541,3.01803,3313.5,3312.7,0.8133]
[1737671969741,3.01821,3313.3,3312.5,0.373]
[1737671970032,0.8202,3313.2,3312.7,3.01863]
[1737671970758,0.8202,3313.2,3312.7,3.0]
[1737671971039,0.8202,3313.2,3312.7,3.620548]
[1737671971903,0.8202,3313.2,3312.8,3.01853]
[1737671973149,0.8202,3313.2,3312.5,6.01885]
[1737671973355,0.8202,3313.2,3311.4,0.8157]
[1737671973516,2.91725934,3314.1,3310.6,0.8157]
[1737671973517,0.8248,3311.9,3310.6,0.8157]
[1737671973712,0.8248,3311.9,3310.7,3.0205]
[1737671973949,0.8006,3311.9,3310.5,3.02069]
[1737671974151,3.01989,3311.4,3310.7,3.0205]
[1737671974322,3.01989,3311.4,3310.6,7.02051]
[1737671974527,3.01989,3311.4,3310.7,3.02049]
[1737671974722,0.8006,3311.9,3310.6,5.004127]
[1737671974723,0.8006,3311.9,3310.6,1.004127]
[1737671974969,0.8006,3311.9,3311.4,3.01984]
[1737671975260,0.8006,3311.9,3311.5,3.0]
[1737671975865,0.8006,3311.9,3311.2,3.0]
[1737671976161,3.82004,3311.9,3311.2,3.0]
[1737671976454,3.01958,3311.8,3311.2,3.0]
[1737671976760,3.82005,3311.9,3311.2,3.02003]
[1737671977342,1.484529,3311.9,3310.8,0.373]
[1737671977667,3.01962,3311.7,3311.0,3.0]
[1737671978175,3.01951,3311.8,3310.8,0.373]
[1737671978176,3.0195,3311.8,3310.8,0.373]
[1737671978372,0.8065,3311.2,3310.5,3.02061]
[1737671978537,3.82658,3311.2,3310.5,3.02064]
[1737671978744,0.8065,3311.2,3310.3,3.39386]
[1737671979042,3.02016,3311.1,3310.4,3.438906]
[1737671979440,3.02023,3311.0,3310.4,0.418136]
[1737671979842,3.02023,3311.0,3310.3,3.02082]
[1737671980369,3.02023,3311.0,3310.1,3.02105]
[1737671980568,3.02023,3311.0,3309.9,3.39415]
[1737671980776,3.0205,3310.8,3310.1,3.0]
[1737671981070,3.0205,3310.8,3310.2,0.04000003]
[1737671981272,3.0205,3310.8,3310.1,3.02104]
[1737671981467,3.0205,3310.8,3310.2,0.04000003]
[1737671981660,0.8065,3311.2,3310.2,0.04000003]
[1737671981661,3.02033,3310.9,3310.2,0.04000003]
[1737671982184,0.8065,3311.2,3310.2,0.04000003]
[1737671982381,3.02015,3311.1,3310.4,3.02077]
[1737671982537,3.0203,3311.0,3310.2,0.04000003]
[1737671982738,3.02044,3310.8,3310.5,0.03968964]
[1737671982939,3.02044,3310.8,3310.2,3.0]
[1737671983270,3.0207,3310.5,3309.3,0.61285188]
[1737671983467,3.0207,3310.5,3309.7,3.80888]
[1737671983639,3.02078,3310.4,3309.8,0.04041398]
[1737671984064,3.02062,3310.6,3309.8,3.04041398]
[1737671984269,0.7887,3310.5,3309.8,0.04041398]
[1737671984440,3.02121,3310.0,3309.2,3.39484]
[1737671984766,2.77232586,3311.2,3310.1,3.02098]
[1737671984767,3.0201,3311.2,3310.1,3.02098]
[1737671984964,3.0201,3311.2,3310.6,3.0]
[1737671985175,0.7887,3311.5,3311.0,3.02021]
[1737671985442,0.7887,3312.0,3311.6,3.0]
[1737671985643,0.7887,3312.0,3311.5,3.01977]
[1737671985886,0.8008,3312.5,3312.0,6.01924]
[1737671986179,3.01899,3312.4,3311.7,3.01959]
[1737671986363,3.401109,3312.3,3311.3,3.78575]
[1737671986544,0.381979,3312.3,3311.6,3.0]
[1737671986744,3.01915,3312.2,3311.6,3.0]
[1737671986951,0.381979,3312.3,3311.6,3.0]
[1737671987156,0.8097,3311.8,3309.8,0.8065]
[1737671987343,0.381979,3312.3,3309.8,3.02129]
[1737671987344,0.8097,3311.3,3309.8,3.02129]
[1737671987545,0.8097,3310.5,3309.3,3.02178]
[1737671987849,0.8097,3310.5,3310.1,3.0]
[1737671988176,0.8097,3310.5,3310.1,3.02103]
[1737671988377,0.8097,3311.0,3310.3,3.0]
[1737671988744,0.8097,3311.0,3310.7,3.0205]
[1737671988941,0.8097,3311.0,3310.8,3.0]
[1737671989148,0.8097,3311.0,3310.8,6.02038]
[1737671989944,0.7522,3311.6,3310.6,3.0]
[1737671990294,3.01978,3311.5,3310.8,3.02038]
[1737671990492,4.073881,3311.6,3310.9,3.0]
[1737671990786,0.7522,3311.6,3311.4,3.01978]
[1737671990946,0.7522,3311.6,3310.8,6.04082]
[1737671990947,0.7522,3311.6,3310.9,3.0]
[1737671991268,0.7932,3312.1,3311.6,3.0]
[1737671991898,0.7932,3312.1,3311.8,3.0]
[1737671992076,0.7994,3312.8,3311.8,0.7655]
[1737671992254,0.7994,3312.8,3312.4,3.0]
[1737671992447,0.7994,3312.8,3312.6,3.0]
[1737671992776,0.811,3313.3,3312.7,6.01868]
[1737671992939,0.811,3313.3,3312.7,3.01868]
[1737671992940,1.193907,3313.3,3312.7,3.01868]
[1737671993146,4.212067,3313.3,3312.7,3.0]
[1737671993345,1.193907,3313.3,3312.7,3.0]
[1737671993749,4.212047,3313.3,3312.4,6.01893]
[1737671993947,1.193907,3313.3,3312.6,3.0]
[1737671995787,4.212057,3313.3,3312.6,3.0]
[1737671996154,1.193907,3313.3,3312.6,3.0]
[1737671997284,0.811,3313.3,3312.6,3.01876]
[1737671998348,3.82919,3313.3,3312.4,3.01895]
[1737671998549,3.82919,3313.3,3311.8,0.7655]
[1737671998550,3.01851,3312.9,3312.1,3.01922]
[1737671998754,0.8223,3313.0,3312.0,3.0]
[1737671998959,3.01857,3312.9,3312.0,6.01928]
[1737671999185,3.70449,3312.9,3312.0,6.01928]
[1737671999799,0.68592,3312.9,3312.2,3.01908]
[1737672000096,3.84071,3313.0,3312.2,3.01908]
[1737672000267,0.8223,3313.0,3311.9,3.0]
[1737672000452,1.41376129,3313.6,3312.9,3.0]
[1737672000651,0.8223,3313.6,3312.9,3.0]
[1737672000893,0.8223,3313.6,3313.4,3.01804]
[1737672001097,0.8223,3314.1,3313.6,3.0178]
[1737672001268,0.8223,3314.1,3313.6,3.0]
[1737672001470,0.8223,3314.1,3313.9,3.0]
[1737672001777,0.8223,3314.7,3314.1,3.0]
[1737672002166,0.8223,3314.7,3314.1,0.60175]
[1737672002368,0.005,3314.8,3314.5,3.0]
[1737672002570,0.005,3314.8,3314.5,3.01696]
[1737672002778,0.005,3314.8,3314.7,3.0]
[1737672002957,0.005,3314.8,3314.7,6.01686]
[1737672005108,0.005,3314.8,3314.7,6.38886]
[1737672005421,0.005,3314.8,3314.7,7.32944]
[1737672006074,0.1706869,3315.6,3314.7,1.31258]
[1737672006279,0.1706869,3315.6,3314.7,0.372]
[1737672006621,0.1706869,3315.6,3314.9,3.01668]
[1737672008322,0.1706869,3315.6,3314.7,0.372]
[1737672008523,0.1706869,3315.6,3314.9,3.0]
[1737672008893,0.1706869,3315.6,3314.7,0.372]
[1737672009096,0.1706869,3315.6,3314.9,3.01666]
[1737672009893,0.1706869,3315.6,3314.7,0.372]
[1737672010090,0.1706869,3315.6,3315.5,6.01613]
[1737672010320,0.1706869,3315.6,3315.5,6.83013]
[1737672014220,6.9e-06,3315.6,3315.5,6.83013]
[1737672014595,6.9e-06,3315.6,3315.5,41.83013]
[1737672014810,6.9e-06,3315.6,3315.5,46.93215562]
[1737672016283,0.019613,3316.0,3315.9,3.01577]
[1737672016492,3e-06,3316.0,3315.9,8.79527]
[1737672016811,0.09369803,3317.2,3317.1,3.0]
[1737672017010,0.09369803,3317.2,3317.1,6.38568]
[1737672017213,0.09369803,3317.2,3317.1,42.325717]
[1737672017627,0.09369803,3317.2,3317.1,43.105217]
[1737672020900,0.09369803,3317.2,3317.1,8.105217]
[1737672021338,0.09369803,3317.2,3317.1,43.105217]
[1737672021539,0.09369803,3317.2,3317.1,45.105217]
[1737672021838,0.09369803,3317.2,3317.1,10.25047261]
[1737672022312,0.09369803,3317.2,3317.1,45.25047261]
[1737672023555,0.00937279,3317.9,3317.8,6.01404]
[1737672023769,0.00937279,3317.9,3317.8,6.81774]
[1737672025138,0.00937279,3317.9,3317.8,6.01404]
[1737672026491,0.00937279,3317.9,3317.8,6.38504]
[1737672029688,0.00937279,3317.9,3317.8,6.64989202]
[1737672029847,0.00937279,3317.9,3317.8,7.63131531]
[1737672030587,0.00937279,3317.9,3317.8,3.46517597]
[1737672030786,0.00937279,3317.9,3317.8,3.83517597]
[1737672030994,0.00937279,3317.9,3317.8,6.84921597]
[1737672032602,0.00937279,3317.9,3317.8,6.89921979]
[1737672032802,0.00937279,3317.9,3317.8,7.72731979]
[1737672033101,0.00937279,3317.9,3317.8,8.80146977]
[1737672033700,0.00937279,3317.9,3317.8,9.12245987]
[1737672034695,0.00937279,3317.9,3317.8,44.12245987]
[1737672036117,0.00937279,3317.9,3317.8,44.73101691]
[1737672036283,0.0036126,3318.2,3318.1,5.01377]
[1737672036616,0.0036126,3318.2,3318.1,9.298035]
[1737672036815,0.0036126,3318.2,3318.1,9.34574352]
[1737672036983,3.62440215,3319.6,3318.2,3.0]
[1737672037309,3.62440215,3319.6,3318.8,3.0]
[1737672037310,3.01251,3319.5,3318.8,3.0]
[1737672037781,3.01251,3319.5,3318.9,0.04715209]
[1737672038098,3.01251,3319.5,3318.9,0.6531843]
[1737672038308,3.01265,3319.4,3318.9,0.04715209]
[1737672038466,0.61199215,3319.6,3318.4,3.0]
[1737672038667,3.01293,3319.1,3319.0,0.04518664]
[1737672038867,3.01293,3319.1,3319.0,0.26485202]
[1737672039068,3.01293,3319.1,3319.0,0.31003866]
[1737672039795,3.78873,3319.1,3319.0,0.07750966]
[1737672039991,3.78873,3319.1,3319.0,9.66e-06]
[1737672040205,3.78911,3318.6,3318.5,0.20032395]
[1737672040706,3.01374,3318.2,3317.5,0.89131405]
[1737672040922,3.01374,3318.2,3317.6,35.0]
[1737672041486,3.01295,3319.0,3317.6,35.0]
[1737672041713,0.7758,3317.9,3317.6,35.0]
[1737672041918,3.01421,3317.7,3317.5,0.52131405]
[1737672042388,0.7758,3318.3,3317.7,0.4275835]
[1737672042598,3.01372,3318.2,3317.7,0.62790745]
[1737672043225,0.7758,3318.3,3317.7,0.62790745]
[1737672043590,0.7758,3318.3,3317.9,0.5]
[1737672044218,0.7758,3318.3,3318.0,0.4275835]
[1737672044927,3.7894,3318.3,3318.0,0.4275835]
[1737672045133,3.7894,3318.3,3318.1,0.20032395]
[1737672045831,3.7894,3318.3,3318.1,0.62790745]
[1737672046231,3.7894,3318.3,3318.2,0.20032395]
[1737672046616,3.01343,3318.5,3318.2,0.20032395]
[1737672046918,3.01324,3318.7,3318.2,0.20032395]
[1737672047119,3.42844111,3318.7,3318.2,0.20032395]
[1737672047319,3.42844111,3318.7,3318.3,0.4275835]
[1737672047514,3.42844111,3318.7,3318.3,0.47083357]
[1737672047721,3.42844111,3318.7,3318.3,0.67115752]
[1737672048288,3.78895,3318.8,3318.3,0.67115752]
[1737672048494,3.01331,3318.7,3318.3,0.67115752]
[1737672048893,3.01331,3318.7,3318.4,0.20032395]
[1737672049100,3.01338,3318.6,3318.4,0.24350445]
[1737672049301,3.0134,3318.5,3318.4,0.67108795]
[1737672050224,3.01334,3318.6,3318.4,0.67108795]
[1737672050405,0.7758,3318.8,3318.4,0.67108795]
[1737672050613,3.01333,3318.6,3318.4,0.67108795]
[1737672051228,3.01333,3318.6,3318.5,0.62790745]
[1737672051536,3.01333,3318.6,3318.5,0.67113521]
[1737672052258,3.01333,3318.6,3318.5,0.44043247]
[1737672052538,4.06322,3318.7,3316.7,3.81522]
[1737672052738,3.01432,3317.5,3316.7,0.37]
[1737672052943,3.01368,3318.2,3316.7,0.37]
[1737672053236,3.01468,3317.1,3316.7,0.37]
[1737672053533,0.61707225,3318.0,3316.7,0.37]
[1737672053832,0.61707225,3318.0,3316.3,3.00210606]
[1737672053833,3.01495,3316.8,3316.3,3.00210606]
[1737672054138,3.01495,3316.8,3316.5,3.0]
[1737672054319,3.01495,3316.8,3316.4,35.0]
[1737672054631,3.82959,3317.0,3316.3,3.00210606]
[1737672054632,0.8148,3317.0,3316.3,3.00210606]
[1737672054832,3.0153,3316.5,3316.3,3.00210606]
[1737672055128,3.01531,3316.4,3316.3,3.00210606]
[1737672055329,3.82621,3316.4,3316.3,3.00210606]
[1737672055925,3.01556,3316.2,3315.4,0.61659006]
[1737672056126,3.01556,3316.2,3315.5,35.37]
[1737672056326,3.01556,3316.2,3315.6,3.10202562]
[1737672057044,3.01556,3316.2,3315.7,3.0]
[1737672057533,0.8109,3316.4,3315.7,3.0]
[1737672057737,0.7857,3316.8,3316.0,3.0]
[1737672058038,3.01505,3316.7,3316.0,3.0]
[1737672058241,3.01545,3316.3,3315.5,0.37]
[1737672058539,3.01561,3316.1,3315.5,0.37]
[1737672058736,3.0155,3316.2,3315.7,3.0]
[1737672058938,3.01559,3316.1,3315.7,3.0]
[1737672059300,3.01559,3316.1,3315.5,0.37]
[1737672059503,3.0155,3316.2,3315.5,0.37]
[1737672059716,3.0155,3316.2,3315.7,3.0]
[1737672060235,3.0155,3316.2,3315.8,0.04399115]
[1737672060438,3.01547,3316.3,3315.8,0.04399115]
[1737672060643,3.01547,3316.3,3315.5,3.789184]
[1737672060935,3.01523,3316.5,3315.6,0.3789184]
[1737672061138,3.01533,3316.4,3315.6,3.4131305]
[1737672061339,3.01554,3316.2,3315.6,0.0441305]
[1737672061645,0.5923889,3317.0,3315.3,0.8057]
[1737672061646,3.0159,3315.8,3315.3,0.8057]
[1737672061846,0.7857,3316.0,3315.7,0.04375829]
[1737672062140,0.7857,3316.0,3315.4,3.0]
[1737672062345,3.01524,3316.5,3315.8,0.04383084]
[1737672062640,0.7857,3316.7,3315.8,3.01583]
[1737672062852,0.7857,3316.7,3316.0,3.0]
[1737672063218,3.80075,3316.7,3316.1,0.04362186]
[1737672063625,3.01516,3316.6,3316.1,0.04362186]
[1737672063956,0.55,3317.6,3316.3,0.25]
[1737672064261,3.01404,3317.8,3316.7,0.75]
[1737672064428,3.01475,3317.1,3316.7,0.75]
[1737672064622,3.01475,3317.1,3316.8,0.54398453]
[1737672065224,3.01424,3317.6,3317.3,0.5]
[1737672065424,3.01428,3317.6,3317.3,0.6706869]
[1737672065757,3.01428,3317.6,3317.4,0.04373436]
[1737672066259,3.01428,3317.6,3317.5,9.5]
[1737672066438,3.01428,3317.6,3317.5,9.6706869]
[1737672066749,3.01428,3317.6,3317.5,9.71454807]
[1737672067250,0.809,3317.7,3317.6,3.0]
[1737672067418,3.01405,3317.8,3317.6,3.1706869]
[1737672067618,3.01405,3317.8,3317.6,3.21434919]
[1737672067818,3.01413,3317.7,3317.6,3.21434919]
[1737672068017,3.01413,3317.7,3317.6,6.71434919]
[1737672068230,3.82313,3317.7,3317.6,6.71434919]
[1737672068924,4.37313,3317.7,3317.6,6.71434919]
[1737672069124,3.82313,3317.7,3317.6,0.21434919]
[1737672070019,3.82313,3317.7,3317.6,6.71434919]
[1737672070259,4.37313,3317.7,3317.6,5.08686184]
[1737672070435,4.37313,3317.7,3317.6,5.1272189]
[1737672070754,3.82313,3317.7,3317.6,5.1272189]
[1737672071661,3.82313,3317.7,3317.6,8.1272189]
[1737672071837,3.01413,3317.7,3317.6,8.93994079]
[1737672072032,3.01396,3317.9,3317.8,0.25]
[1737672072253,3.01396,3317.9,3317.8,0.75]
[1737672072453,3.01349,3318.5,3318.0,0.25]
[1737672072627,3.01354,3318.4,3318.1,0.5]
[1737672072829,3.0135,3318.4,3318.3,0.5]
[1737672073145,3.01362,3318.3,3318.1,0.5]
[1737672073351,3.01362,3318.3,3318.2,0.5]
[1737672073563,0.809,3318.6,3318.1,0.5]
[1737672073854,0.7735,3319.6,3318.1,0.5]
[1737672074022,3.0135,3318.4,3318.1,0.5]
[1737672074225,3.0126163,3318.2,3318.1,0.5]
[1737672074586,3.0135,3318.4,3318.3,0.5]
[1737672074752,3.00908311,3318.4,3318.3,0.5]
[1737672075067,3.01357,3318.4,3318.3,0.5]
[1737672075252,3.01344,3318.5,3318.2,0.5]
[1737672075253,3.01359,3318.3,3318.2,0.5]
[1737672075981,3.01359,3318.3,3318.2,10.0]
[1737672076143,3.01359,3318.3,3318.2,9.5]
[1737672076528,0.59602149,3318.8,3318.3,3.25]
[1737672076725,3.01341,3318.5,3318.3,3.25]
[1737672076977,3.01341,3318.5,3318.3,0.25]
[1737672077143,3.01322,3318.7,3318.6,0.5]
[1737672077639,3.01338,3318.6,3318.1,0.75]
[1737672077842,3.01413,3317.7,3317.4,0.75]
[1737672078039,3.01431,3317.5,3317.2,0.25]
[1737672078238,3.01403,3317.9,3317.4,0.5]
[1737672078473,3.01427,3317.6,3317.5,0.5]
[1737672078970,3.0144,3317.4,3317.0,0.5]
[1737672079169,3.0144,3317.4,3316.8,0.619]
[1737672079170,3.01404,3317.8,3316.7,0.75]
[1737672079377,3.01468,3317.1,3316.7,0.75]
[1737672079599,3.01404,3317.8,3316.7,0.75]
[1737672079600,0.60885891,3317.8,3316.7,0.75]
[1737672079798,3.01454,3317.3,3317.1,0.5]
[1737672080305,3.01468,3317.1,3317.0,6.5]
[1737672080509,3.01454,3317.3,3317.0,7.25]
[1737672080804,3.01468,3317.1,3317.0,9.75]
[1737672081004,3.79888,3317.1,3317.0,6.5]
[1737672081357,3.01468,3317.1,3317.0,6.5]
[1737672084210,3.01468,3317.1,3317.0,4.99261]
[1737672084211,4.34268,3317.1,3317.0,4.99261]
[1737672084535,0.778,3316.1,3315.2,0.25]
[1737672084713,3.01604,3315.6,3315.1,0.5]
[1737672085411,3.01604,3315.6,3314.8,0.25]
[1737672085412,3.79404,3315.6,3314.8,0.25]
[1737672085618,4.34404,3315.6,3315.5,2.58e-06]
[1737672085814,3.01686,3314.7,3314.6,0.32218698]
[1737672086131,3.79486,3314.7,3314.6,0.32218698]
[1737672086329,4.398221,3314.7,3314.6,0.36311846]
[1737672086534,4.398221,3314.7,3314.6,0.32218698]
[1737672086834,3.79486,3314.7,3314.6,0.36363294]
[1737672087195,3.79486,3314.7,3314.6,0.04144596]
[1737672087579,3.01686,3314.7,3314.6,0.04144596]
[1737672087999,3.01686,3314.7,3314.6,6.54144596]
[1737672089327,0.7533,3315.0,3314.6,6.54144596]
[1737672089662,3.01677,3314.8,3314.6,6.54144596]
[1737672089992,3.01677,3314.8,3314.6,0.04144596]
[1737672090933,3.7699,3315.0,3314.6,0.04144596]
[1737672091091,3.01668,3314.9,3314.8,6.5]
[1737672091420,3.01695,3314.6,3314.5,7.35e-06]
[1737672091579,4.51355,3314.6,3314.5,7.35e-06]
[1737672091779,3.01794,3313.6,3313.2,0.5]
[1737672091983,3.01794,3313.6,3313.4,0.5]
[1737672091984,3.01801,3313.5,3313.4,0.5]
[1737672092188,0.9466,3314.3,3313.2,0.5]
[1737672092392,0.9466,3314.3,3312.6,0.992]
[1737672092393,3.01761,3313.9,3313.4,0.5]
[1737672092646,3.01756,3314.0,3313.5,0.25]
[1737672092939,3.01732,3314.2,3313.8,0.25]
[1737672093142,0.9466,3314.3,3313.5,0.25]
[1737672093328,0.9466,3314.3,3313.8,0.25]
[1737672093329,3.96391,3314.3,3313.8,0.25]
[1737672093491,0.9466,3314.3,3313.8,0.25]
[1737672093893,0.9266,3314.9,3314.2,0.5]
[1737672094124,3.01601,3315.7,3315.1,0.25]
[1737672094342,3.01578,3315.9,3315.4,0.75]
[1737672094549,3.01504,3316.7,3315.7,0.25]
[1737672094843,3.01492,3316.9,3315.9,0.5]
[1737672094844,3.01551,3316.2,3315.9,0.5]
[1737672095050,3.01467,3317.2,3316.6,0.25]
[1737672095227,3.0145,3317.3,3316.8,0.75]
[1737672095430,3.01395,3317.9,3317.5,0.5]
[1737672095431,3.01396,3317.9,3317.5,0.5]
[1737672095794,3.01377,3318.1,3317.5,0.5]
[1737672096009,0.301377,3318.0,3317.5,0.5]
[1737672096212,3.01377,3318.1,3317.8,0.25]
[1737672096941,3.01377,3318.1,3317.9,0.5]
[1737672097148,3.01477,3317.0,3316.7,0.5]
[1737672097418,3.01507,3316.7,3316.1,0.958]
[1737672097570,3.01537,3316.4,3316.0,0.25]
[1737672097770,3.01542,3316.3,3316.1,0.5]
[1737672098071,3.01523,3316.5,3316.2,0.5]
[1737672098390,3.316753,3316.5,3316.0,0.25]
[1737672098617,3.01531,3316.4,3316.3,0.03622858]
[1737672098774,3.316753,3316.5,3316.0,0.25]
[1737672098775,3.0154,3316.3,3316.2,0.5]
[1737672098970,3.01551,3316.2,3316.0,0.75]
[1737672099325,0.301523,3316.5,3315.2,6.01636]
[1737672099326,3.01631,3315.3,3315.2,0.25]
[1737672099612,0.55,3316.2,3314.8,0.25]
[1737672099817,3.01661,3315.0,3314.8,0.25]
[1737672099965,3.01673,3314.9,3314.8,0.25]
[1737672100170,3.01677,3314.8,3314.7,0.5]
[1737672100365,0.9368,3315.7,3314.8,0.25]
[1737672100366,3.01604,3315.6,3314.8,0.25]
[1737672100580,3.01652,3315.1,3314.8,0.75]
[1737672100909,3.01659,3315.0,3314.6,0.25]
[1737672101482,3.01659,3315.0,3314.8,0.5]
[1737672101813,3.0165,3315.1,3314.8,0.5]
[1737672101972,3.01665,3315.0,3314.8,0.5]
[1737672102821,3.01722,3314.4,3313.8,0.25]
[1737672103006,0.55,3314.7,3313.8,0.25]
[1737672103317,3.01759,3313.9,3313.8,0.25]
[1737672104166,3.01759,3313.9,3313.7,0.5]
[1737672104371,2.99759,3313.9,3313.7,0.5]
[1737672104573,3.01703,3314.6,3313.7,0.5]
[1737672104574,3.01768,3313.8,3313.7,0.5]
[1737672104971,3.01756,3314.0,3313.5,0.5]
[1737672104972,3.01778,3313.7,3313.5,0.5]
[1737672105404,3.01786,3313.6,3313.5,0.5]
[1737672105822,3.01797,3313.5,3313.2,0.25]
[1737672106022,3.01778,3313.7,3313.2,0.75]
[1737672106323,3.01768,3313.8,3313.7,0.25]
[1737672106473,3.01768,3313.8,3312.8,2.171]
[1737672106474,4.58840878,3314.7,3313.4,0.25]
[1737672106671,3.01795,3313.5,3313.4,0.25]
[1737672107239,3.01841,3313.0,3312.9,0.5]
[1737672107522,0.9368,3313.7,3312.9,0.5]
[1737672107675,3.01826,3313.2,3312.9,0.5]
[1737672108384,0.9368,3313.7,3312.9,0.5]
[1737672108385,3.56841,3313.0,3312.9,0.5]
[1737672108624,0.55,3312.8,3312.4,0.5]
[1737672108919,3.0185,3312.9,3312.7,0.25]
[1737672109100,3.01877,3312.6,3312.2,0.5]
[1737672109299,3.01905,3312.3,3312.2,0.5]
[1737672109683,3.01914,3312.2,3312.1,0.4275088]
[1737672109908,3.01968,3311.6,3311.5,0.25]
[1737672111109,3.01941,3311.9,3311.4,0.25]
[1737672111310,3.01941,3311.9,3311.4,0.75]
[1737672111474,0.55,3311.8,3311.4,0.75]
[1737672111671,3.01919,3312.2,3312.0,0.25]
[1737672111889,3.01869,3312.7,3312.1,0.25]
[1737672112086,3.01996,3311.3,3311.0,0.5]
[1737672112354,3.01987,3311.4,3310.8,0.5]
[1737672112647,0.55,3311.6,3310.6,1.0132]
[1737672112953,3.01964,3311.7,3310.7,3.0]
[1737672113249,3.01973,3311.6,3310.8,3.45362945]
[1737672113443,3.01954,3311.8,3311.0,3.02022]